bitfinex/quotes_ETHUSD_20240612
["timestamp","ask_amount","ask_price","bid_price","bid_amount"]
[1718200531036,7.49,3615.2,3614.9,5.5327]
[1718200531797,7.49,3615.2,3615.0,2.76625]
[1718200532077,2.76538,3616.2,3615.0,2.76625]
[1718200532078,7.49,3615.8,3615.3,2.76599]
[1718200532237,7.49,3616.2,3615.3,2.76599]
[1718200533355,3.0,3616.1,3615.3,2.76599]
[1718200538310,3.0,3616.1,3615.3,4.06469351]
[1718200539530,2.76551,3616.0,3615.3,2.76599]
[1718200539667,3.0,3615.9,3615.3,2.76599]
[1718200540294,3.0,3615.9,3615.1,5.5324]
[1718200540295,2.76564,3615.8,3615.1,5.5324]
[1718200540481,3.4838,3615.8,3615.1,5.5324]
[1718200540681,3.64838,3615.7,3615.1,5.5324]
[1718200542001,2.76588,3615.5,3615.1,5.5324]
[1718200543021,2.76602,3615.3,3615.1,5.5324]
[1718200544709,3.1983,3615.2,3615.1,5.5324]
[1718200544913,7.810832,3615.2,3615.1,5.5324]
[1718200545115,2.76639,3614.9,3613.9,3.4504]
[1718200545316,2.76648,3614.7,3613.9,3.4504]
[1718200546954,7.49,3615.1,3614.1,2.76693]
[1718200547112,3.0,3615.0,3614.2,0.05533159]
[1718200547852,3.0,3615.0,3614.3,2.82208937]
[1718200548535,3.0,3615.0,3614.3,4.80708937]
[1718200551338,3.0,3615.0,3614.6,2.76655]
[1718200552129,7.49,3615.1,3614.9,2.76632]
[1718200552314,7.49,3615.7,3614.9,2.76632]
[1718200552648,7.49,3615.7,3615.5,4.75083]
[1718200554156,7.49,3615.7,3615.5,6.18427514]
[1718200554384,7.49,3615.7,3615.6,5.34227265]
[1718200554532,7.49,3615.7,3615.6,10.87387265]
[1718200556037,7.49,3616.3,3615.8,2.76563]
[1718200556212,19.77,3616.7,3616.0,2.76544]
[1718200556414,3.0,3616.6,3616.0,2.76544]
[1718200556644,3.0,3616.6,3616.0,3.595094]
[1718200558573,3.0,3616.6,3616.1,5.5308]
[1718200562267,3.2928,3616.6,3616.1,5.5308]
[1718200562590,3.0,3616.5,3616.1,5.5308]
[1718200566215,3.0,3616.6,3616.1,5.5308]
[1718200572742,2.76511,3616.5,3616.1,5.5308]
[1718200575729,3.0,3616.6,3616.1,5.5308]
[1718200575906,3.0,3616.7,3616.1,5.5308]
[1718200582154,7.49,3617.0,3616.1,8.29615]
[1718200582352,7.49,3617.0,3616.4,3.1069]
[1718200582658,7.49,3617.0,3616.5,5.5302]
[1718200584015,7.49,3617.0,3616.5,8.29528]
[1718200584515,7.49,3617.0,3616.8,2.76487]
[1718200584722,7.49,3617.3,3616.8,2.76487]
[1718200584931,7.49,3617.3,3616.8,3.594377]
[1718200585256,3.0,3617.2,3616.8,3.594377]
[1718200586250,7.49,3617.3,3616.8,3.594377]
[1718200591182,7.49,3617.3,3617.0,6.06591]
[1718200591394,7.49,3617.3,3617.1,6.42287117]
[1718200593388,7.49,3617.3,3617.1,5.5293]
[1718200612646,7.49,3617.3,3617.2,3.2658]
[1718200614623,7.49,3617.3,3617.2,8.7949]
[1718200617545,7.49,3617.9,3617.3,2.76446]
[1718200617859,3.0,3618.1,3617.3,2.76446]
[1718200618145,3.0,3618.0,3617.3,2.76446]
[1718200618348,5.76386,3618.2,3617.3,2.76446]
[1718200620311,2.76417,3617.8,3617.2,5.5291]
[1718200621634,2.76432,3617.6,3617.2,5.5291]
[1718200622017,2.76448,3617.4,3617.2,5.5291]
[1718200624349,6.0575,3617.3,3617.2,5.5291]
[1718200624509,6.6075,3617.3,3617.2,5.5291]
[1718200625323,9.70194514,3617.3,3617.2,5.5291]
[1718200625528,9.70194514,3617.3,3615.9,3.1922]
[1718200625529,11.06212387,3617.3,3615.9,3.1922]
[1718200625724,1.43344514,3617.2,3615.9,3.1922]
[1718200625929,0.55,3617.1,3615.9,3.1922]
[1718200627067,2.76508,3616.6,3615.9,3.1922]
[1718200627832,2.76508,3616.6,3615.7,2.76565]
[1718200628033,2.76508,3616.6,3615.7,3.43446212]
[1718200628447,2.76508,3616.6,3615.7,0.66881212]
[1718200629145,2.76508,3616.6,3615.5,3.3425]
[1718200633531,2.76508,3616.6,3615.6,2.76578]
[1718200634931,2.76508,3616.6,3615.7,0.05530793]
[1718200636971,2.76508,3616.6,3615.6,2.76578]
[1718200637371,3.0,3616.5,3615.6,2.76578]
[1718200638464,3.0,3616.5,3615.6,3.376608]
[1718200639261,2.76518,3616.4,3615.6,3.376608]
[1718200640597,2.76518,3616.4,3615.7,0.055308]
[1718200640955,3.0,3616.5,3616.0,0.826]
[1718200641157,3.0,3616.6,3616.0,0.826]
[1718200641458,2.76514,3616.5,3615.8,0.826]
[1718200641887,2.76514,3616.5,3615.8,1.5805108]
[1718200642796,8.316,3616.8,3616.4,0.826]
[1718200642797,7.49,3616.8,3616.4,0.826]
[1718200643003,10.25457,3617.2,3616.4,0.826]
[1718200644156,3.0,3617.1,3616.4,0.826]
[1718200644357,2.76472,3617.0,3616.4,0.826]
[1718200644554,2.76472,3617.0,3616.2,3.59132]
[1718200646184,4.172792,3617.0,3616.0,3.1886]
[1718200646492,4.0118,3616.7,3615.8,2.76559]
[1718200646717,4.0118,3616.7,3615.9,0.826]
[1718200646880,3.1858,3616.7,3615.9,0.826]
[1718200647975,2.76507,3616.6,3615.9,0.826]
[1718200649364,2.76507,3616.6,3615.8,2.76559]
[1718200649665,2.76507,3616.6,3615.8,3.372549]
[1718200651899,2.76519,3616.4,3615.8,3.372549]
[1718200652073,2.6922517,3616.4,3615.8,3.372549]
[1718200668172,2.6922517,3616.4,3615.8,3.95252017]
[1718200670412,2.6922517,3616.4,3615.9,0.57997117]
[1718200670600,2.6922517,3616.4,3615.9,1.39253905]
[1718200671289,2.6922517,3616.4,3616.0,3.59148]
[1718200671908,2.76503,3616.6,3616.0,3.59148]
[1718200673015,7.49,3616.8,3616.5,0.826]
[1718200673411,7.49,3616.8,3616.7,2.76495]
[1718200676210,3.0,3617.1,3616.7,2.76495]
[1718200680233,5.76464,3617.1,3616.4,2.76511]
[1718200680432,5.76464,3617.1,3616.4,3.7147285]
[1718200682717,6.59064,3617.1,3616.4,3.7147285]
[1718200682914,6.59064,3617.1,3616.4,2.76511]
[1718200683139,2.76479,3616.9,3616.4,2.76511]
[1718200684250,3.826,3617.1,3616.2,0.826]
[1718200684251,2.76495,3616.7,3616.2,0.826]
[1718200684574,2.76495,3616.7,3616.1,3.59137]
[1718200684710,2.76495,3616.7,3616.1,0.826]
[1718200684919,2.7651,3616.5,3616.0,0.826]
[1718200685145,2.76541,3616.1,3615.9,0.57997117]
[1718200685359,2.76541,3616.1,3615.5,0.57997117]
[1718200685843,2.76541,3616.1,3615.4,0.826]
[1718200685844,2.76541,3616.1,3615.4,1.40597117]
[1718200686238,2.76541,3616.1,3615.4,0.826]
[1718200686441,2.76541,3616.1,3615.4,1.40597117]
[1718200686761,2.76541,3616.1,3615.5,1.63368098]
[1718200687324,2.76541,3616.1,3615.7,0.826]
[1718200690566,2.76524,3616.4,3615.7,0.826]
[1718200692546,2.76524,3616.4,3615.6,2.76578]
[1718200692547,3.59124,3616.4,3615.6,2.76578]
[1718200696363,2.76535,3616.2,3615.6,2.76578]
[1718200701236,0.826,3615.9,3615.4,0.57997117]
[1718200701431,0.826,3615.9,3615.3,2.76596]
[1718200702078,2.76566,3615.8,3615.3,2.76596]
[1718200702436,2.401,3615.5,3615.0,3.34615117]
[1718200702638,2.401,3615.5,3615.0,2.76618]
[1718200703246,2.76582,3615.6,3615.1,2.4877]
[1718200703562,2.76582,3615.6,3615.1,3.15368512]
[1718200703964,2.76582,3615.6,3615.1,0.66598512]
[1718200704275,2.76582,3615.6,3615.1,3.78748512]
[1718200705972,2.76582,3615.6,3615.1,1.49198512]
[1718200706178,2.76595,3615.4,3614.9,0.826]
[1718200706345,2.76595,3615.4,3614.7,3.34637117]
[1718200706674,2.7661,3615.2,3614.6,0.57997117]
[1718200706876,2.7661,3615.2,3614.4,2.76663]
[1718200707087,2.7661,3615.2,3614.2,1.40597117]
[1718200707088,2.76627,3615.0,3614.2,0.57997117]
[1718200707276,0.826,3614.9,3614.2,0.57997117]
[1718200707480,2.76627,3615.0,3614.1,5.10607]
[1718200707850,2.76627,3615.0,3614.1,5.93207]
[1718200708186,0.826,3614.9,3614.1,5.93207]
[1718200708348,0.826,3614.9,3614.1,6.58327412]
[1718200708763,2.76627,3615.0,3614.3,2.76675]
[1718200709000,2.76627,3615.0,3614.3,3.59275]
[1718200711669,3.0,3615.1,3614.5,2.76657]
[1718200711919,3.0,3615.2,3614.5,2.76657]
[1718200712250,3.0,3615.2,3614.8,2.76635]
[1718200713796,3.0,3615.2,3614.5,2.76658]
[1718200715937,3.0776,3615.1,3614.2,2.76681]
[1718200716091,3.0,3615.0,3614.2,2.76681]
[1718200717084,5.76625,3615.0,3614.2,2.76681]
[1718200719512,5.76625,3615.0,3614.2,3.59281]
[1718200720524,2.76691,3614.2,3613.3,0.57997117]
[1718200720684,5.42284514,3614.9,3613.2,2.4745]
[1718200720685,0.826,3614.1,3613.2,3.3005]
[1718200721031,2.3284,3614.3,3613.6,0.826]
[1718200721199,3.0,3614.3,3613.8,3.3005]
[1718200721402,3.0,3614.3,3614.2,0.826]
[1718200721604,2.76654,3614.7,3614.2,0.826]
[1718200721801,2.76654,3614.7,3613.8,2.4745]
[1718200721802,3.55,3614.6,3614.0,0.826]
[1718200726421,3.0,3614.6,3614.1,2.76691]
[1718200726720,3.0,3614.6,3614.1,3.373651]
[1718200729121,2.76654,3614.7,3614.1,3.373651]
[1718200732322,7.49,3614.9,3614.3,2.76675]
[1718200732488,3.0,3614.8,3614.3,2.76675]
[1718200733197,7.49,3614.9,3614.6,2.76654]
[1718200733398,7.49,3614.9,3614.4,2.46582711]
[1718200733399,7.49,3615.4,3614.9,2.76632]
[1718200733607,12.28,3615.8,3614.9,2.76632]
[1718200733608,19.77,3615.8,3615.2,0.826]
[1718200734038,19.77,3615.8,3615.3,2.82132778]
[1718200734351,7.49,3616.2,3615.7,2.7657]
[1718200734513,22.53505,3616.6,3615.9,0.826]
[1718200735734,22.53505,3616.6,3615.7,3.5917]
[1718200736848,3.0,3616.5,3615.7,3.5917]
[1718200737752,3.0,3616.5,3615.9,0.826]
[1718200738613,3.59118,3616.4,3615.7,2.7657]
[1718200738838,4.422968,3616.4,3615.7,2.7657]
[1718200739143,2.76518,3616.4,3615.7,2.7657]
[1718200740443,3.59118,3616.4,3615.7,2.7657]
[1718200741310,3.59118,3616.4,3615.6,2.4105]
[1718200741512,3.5914,3616.2,3615.4,3.59191]
[1718200741810,3.47954,3616.2,3615.4,3.59191]
[1718200742010,2.7654,3616.2,3615.6,0.826]
[1718200745946,2.7654,3616.2,3615.4,2.76591]
[1718200746134,2.7654,3616.2,3615.4,3.59191]
[1718200746314,2.7204,3616.2,3615.4,3.59191]
[1718200746715,2.7204,3616.2,3615.4,2.76591]
[1718200746914,2.7204,3616.2,3615.4,3.59191]
[1718200746915,3.43004,3616.2,3615.4,3.59191]
[1718200747236,2.7204,3616.2,3615.6,0.826]
[1718200750743,2.76574,3615.7,3615.0,2.7662]
[1718200752047,2.76574,3615.7,3615.1,0.826]
[1718200752562,2.76574,3615.7,3615.0,3.5922]
[1718200753362,2.7655,3616.0,3615.5,0.826]
[1718200753564,3.55,3615.9,3615.5,0.826]
[1718200753864,3.55,3615.9,3615.3,2.4619]
[1718200754068,3.55,3615.9,3615.3,3.810694]
[1718200754826,3.0,3615.9,3615.4,2.82122614]
[1718200755158,3.0,3616.2,3615.4,2.82122614]
[1718200755456,0.55,3616.1,3615.4,2.82122614]
[1718200756022,0.55,3616.1,3615.4,2.76591]
[1718200757657,0.826,3616.0,3615.4,2.76591]
[1718200757972,0.55,3615.9,3615.4,2.76591]
[1718200759031,3.31559,3615.9,3615.4,2.76591]
[1718200763635,2.76538,3616.2,3615.6,3.59177]
[1718200763837,3.0,3616.1,3615.6,3.59177]
[1718200764141,3.0,3616.3,3615.8,2.7656]
[1718200764334,3.0,3616.4,3615.8,2.7656]
[1718200764539,3.826,3616.5,3615.8,2.7656]
[1718200770553,2.76522,3616.4,3615.8,2.7656]
[1718200770880,2.76522,3616.4,3615.6,0.826]
[1718200771081,3.0,3616.3,3615.6,0.826]
[1718200771839,2.76534,3616.2,3615.6,0.826]
[1718200772043,3.0,3616.1,3615.6,0.826]
[1718200772259,2.76549,3616.0,3615.5,5.26233]
[1718200773472,2.76549,3616.0,3615.5,2.4965]
[1718200774248,2.76566,3615.8,3615.4,0.826]
[1718200776360,2.76566,3615.8,3615.2,5.12844]
[1718200776585,2.76566,3615.8,3615.2,6.52528112]
[1718200779499,2.76566,3615.8,3615.2,7.10525229]
[1718200781291,2.76566,3615.8,3615.3,0.57997117]
[1718200781666,2.76566,3615.8,3615.4,0.826]
[1718200783692,2.76566,3615.8,3615.4,1.40597117]
[1718200784903,5.76548,3616.1,3615.4,4.17191117]
[1718200785101,0.55,3616.0,3615.4,4.17191117]
[1718200785565,0.55,3616.0,3615.4,3.34591117]
[1718200785767,0.55,3616.0,3615.4,4.17191117]
[1718200787190,0.55,3616.0,3615.4,3.34591117]
[1718200787397,0.55,3616.0,3615.4,2.76594]
[1718200790592,3.31555,3616.0,3615.4,2.76594]
[1718200791415,4.778705,3616.0,3615.4,2.76594]
[1718200792307,2.76565,3615.8,3615.2,2.3624]
[1718200792791,2.76565,3615.8,3615.2,3.1884]
[1718200793192,2.76565,3615.8,3615.2,2.3624]
[1718200794339,2.76565,3615.8,3615.3,3.59201]
[1718200795390,2.76565,3615.8,3615.3,4.17198117]
[1718200796332,0.55,3616.0,3615.3,4.17198117]
[1718200799243,3.0,3616.1,3615.6,0.826]
[1718200799631,3.0,3616.1,3615.4,1.46128758]
[1718200799817,3.0,3616.1,3615.5,0.54332092]
[1718200800000,3.0,3616.1,3615.6,2.76578]
[1718200800203,3.0,3616.1,3615.6,2.75099]
[1718200800424,3.0,3616.2,3615.8,2.76561]
[1718200800640,3.0,3616.4,3615.8,2.76561]
[1718200801007,5.86689028,3616.4,3615.8,2.76561]
[1718200801410,2.76526,3616.3,3615.8,2.76561]
[1718200801607,3.0,3616.2,3615.5,3.34578117]
[1718200801833,5.7654,3616.2,3615.5,3.34578117]
[1718200802044,0.55,3616.1,3615.5,2.76581]
[1718200802406,0.55,3616.1,3615.5,3.34578117]
[1718200802853,3.0,3616.2,3615.6,0.05531269]
[1718200803023,3.0,3616.3,3615.8,2.76563]
[1718200803223,3.0,3616.3,3616.0,2.76547]
[1718200803424,19.77,3616.5,3616.0,2.76547]
[1718200803425,3.0,3616.4,3616.0,2.76547]
[1718200803642,7.49,3616.9,3616.2,3.59132]
[1718200803964,7.49,3616.9,3616.4,3.59116]
[1718200804417,7.49,3616.9,3616.4,2.76516]
[1718200804623,7.49,3616.9,3616.4,3.59116]
[1718200805148,7.49,3616.9,3616.4,2.76516]
[1718200805893,3.3013,3616.5,3615.8,2.76561]
[1718200806333,0.826,3616.2,3615.5,5.77009117]
[1718200806542,6.5912,3616.4,3615.5,5.19012]
[1718200806734,0.55,3616.3,3615.5,5.19012]
[1718200807837,0.55,3616.3,3615.6,0.826]
[1718200808042,3.0,3616.4,3615.6,0.05531151]
[1718200808238,3.0,3616.6,3615.8,0.826]
[1718200809062,3.0,3616.6,3615.9,2.76553]
[1718200809276,3.0,3616.6,3615.9,3.59153]
[1718200809443,3.0,3616.6,3616.1,0.826]
[1718200809760,9.71529,3616.9,3616.3,0.826]
[1718200809962,7.49,3616.9,3616.5,0.826]
[1718200810153,2.76453,3617.3,3616.5,0.826]
[1718200810349,2.76453,3617.3,3616.5,3.59107]
[1718200810551,1.261533,3617.2,3616.5,3.59107]
[1718200810956,1.261533,3617.2,3616.5,2.76507]
[1718200811479,0.55,3617.1,3616.5,2.76507]
[1718200817061,7.49,3617.4,3616.7,2.76491]
[1718200817275,0.55,3617.3,3616.7,2.76491]
[1718200817523,0.55,3617.3,3616.9,2.76477]
[1718200817738,7.49,3617.8,3617.1,2.76462]
[1718200818782,7.49,3617.8,3617.3,2.76447]
[1718200819041,7.49,3617.8,3617.5,2.7643]
[1718200820487,7.49,3617.8,3617.2,2.76453]
[1718200820712,2.76449,3617.3,3616.5,3.34500117]
[1718200820891,0.55,3617.2,3616.7,2.76492]
[1718200822470,2.76431,3617.6,3616.7,2.76492]
[1718200822729,0.55,3617.5,3616.7,2.76492]
[1718200823326,0.55,3617.5,3616.9,2.76477]
[1718200823509,1.025397,3617.7,3617.2,2.76453]
[1718200823714,4.025397,3617.7,3617.2,2.76453]
[1718200824112,7.49,3617.8,3617.4,2.76438]
[1718200826759,7.49,3617.8,3617.1,2.76459]
[1718200827265,7.49,3617.8,3616.8,2.76483]
[1718200827462,0.55,3617.7,3616.8,2.76483]
[1718200827629,2.76439,3617.5,3616.8,2.76483]
[1718200827832,2.7645,3617.3,3616.8,2.76483]
[1718200829861,2.76468,3617.1,3616.5,2.76505]
[1718200830571,2.3644,3617.3,3616.0,2.4879]
[1718200830572,2.76485,3616.9,3616.0,2.4879]
[1718200830729,0.55,3616.8,3616.1,2.76533]
[1718200832360,0.55,3616.8,3616.1,3.290653]
[1718200834856,0.55,3616.8,3616.3,2.76522]
[1718200836622,2.76496,3616.7,3616.0,2.76547]
[1718200836832,2.76528,3616.3,3615.5,2.76579]
[1718200837026,0.55,3616.2,3615.5,2.76579]
[1718200837653,2.76542,3616.1,3615.5,2.76579]
[1718200838525,2.76542,3616.1,3615.2,5.15026]
[1718200838765,0.55,3616.0,3615.2,5.15026]
[1718200839125,2.7656,3615.9,3615.2,2.76606]
[1718200839327,2.7656,3615.9,3614.5,2.85115865]
[1718200839328,2.76572,3615.7,3614.9,2.76628]
[1718200839637,3.394742,3615.7,3614.9,2.76628]
[1718200840578,2.76594,3615.4,3614.6,5.0733]
[1718200842541,2.76594,3615.4,3614.6,2.7665]
[1718200843365,2.76594,3615.4,3614.8,2.76637]
[1718200844427,10.884782,3615.7,3614.8,2.76637]
[1718200844624,7.49,3615.7,3615.0,2.4501]
[1718200844843,7.49,3615.7,3615.5,2.76585]
[1718200845025,7.49,3616.3,3615.5,2.76585]
[1718200845366,7.49,3616.3,3615.6,0.05531141]
[1718200845715,7.49,3616.3,3615.7,2.76568]
[1718200847918,7.49,3616.3,3615.0,2.4501]
[1718200848195,7.49,3616.3,3615.9,7.2232]
[1718200848469,7.49,3616.3,3616.1,2.76537]
[1718200849278,7.49,3616.9,3616.1,2.76537]
[1718200850276,3.0,3616.8,3616.1,2.76537]
[1718200852337,3.0,3616.8,3615.7,2.76565]
[1718200852338,5.7649,3616.8,3615.7,2.76565]
[1718200852652,2.4544,3616.6,3615.7,2.76565]
[1718200852853,5.4544,3616.6,3615.7,2.76565]
[1718200853103,8.21946,3616.6,3615.7,2.76565]
[1718200854240,8.21946,3616.6,3615.4,2.76592]
[1718200854241,2.76519,3616.4,3615.4,2.76592]
[1718200854793,3.0,3616.3,3615.4,2.76592]
[1718200856834,3.0,3616.3,3615.6,2.76575]
[1718200857072,3.0,3616.3,3615.8,2.76558]
[1718200857272,3.0,3616.4,3615.8,2.76558]
[1718200857984,4.7716736,3616.4,3615.8,2.76558]
[1718200860894,4.7716736,3616.4,3615.5,2.7658]
[1718200862699,4.7716736,3616.4,3615.1,3.86244514]
[1718200862700,2.76528,3616.3,3615.2,2.76608]
[1718200865803,4.7716736,3616.4,3615.4,1.982]
[1718200865955,3.0,3616.4,3615.5,0.05530862]
[1718200866713,3.0,3616.4,3615.7,2.76567]
[1718200868815,10.902746,3616.5,3615.7,2.76567]
[1718200869019,9.9759,3616.5,3615.7,2.76567]
[1718200869461,9.9759,3616.5,3615.7,5.13067]
[1718200869462,7.49,3616.5,3615.7,5.13067]
[1718200869655,7.49,3616.5,3615.8,0.05530767]
[1718200869881,7.49,3616.5,3616.3,2.76522]
[1718200870070,7.49,3616.9,3616.3,2.76522]
[1718200873885,7.49,3616.9,3616.5,2.76507]
[1718200874419,7.49,3616.9,3616.0,1.982]
[1718200874420,7.49,3616.9,3616.7,2.76493]
[1718200877304,7.49,3616.9,3616.1,5.13635]
[1718200877305,9.467,3616.9,3616.1,5.13635]
[1718200877473,11.8519,3616.9,3616.1,2.76535]
[1718200880407,11.8519,3616.9,3616.0,0.57997117]
[1718200880608,2.76498,3616.7,3615.7,2.76569]
[1718200880933,2.76498,3616.7,3615.7,3.280099]
[1718200881221,2.76498,3616.7,3615.7,2.76569]
[1718200882068,2.76498,3616.7,3615.9,2.76554]
[1718200882270,3.0,3616.8,3615.5,2.3784]
[1718200882478,3.0,3616.8,3614.8,4.66]
[1718200882479,3.0,3616.8,3616.3,2.76522]
[1718200883208,7.49,3616.9,3616.3,2.76522]
[1718200884609,2.76432,3617.6,3616.5,1.982]
[1718200884770,2.76432,3617.6,3616.6,0.05529449]
[1718200885282,5.23288,3617.9,3616.7,2.76493]
[1718200885468,5.23288,3617.9,3616.9,2.76478]
[1718200885670,1.272288,3617.8,3616.9,2.76478]
[1718200886015,2.76418,3617.7,3616.9,2.76478]
[1718200886224,3.0,3617.6,3616.9,2.76478]
[1718200886725,3.0,3617.6,3616.6,2.76496]
[1718200886890,2.76436,3617.5,3616.6,2.76496]
[1718200887086,3.276436,3617.4,3616.6,2.76496]
[1718200890317,10.766436,3617.4,3616.6,2.76496]
[1718200891979,10.49,3617.4,3616.8,2.76483]
[1718200893594,10.49,3617.4,3616.5,2.76504]
[1718200893806,2.394,3617.3,3616.5,2.76504]
[1718200896799,2.76458,3617.2,3616.5,2.76504]
[1718200899101,2.394,3617.3,3616.5,2.76504]
[1718200899302,2.394,3617.3,3616.5,3.239744]
[1718200900225,7.49,3617.4,3616.6,2.3791981]
[1718200901006,7.49,3617.4,3616.9,2.76477]
[1718200901944,2.4294,3617.6,3616.9,2.76477]
[1718200902518,2.4294,3617.6,3616.9,3.273637]
[1718200902714,3.0,3617.7,3616.9,3.273637]
[1718200903121,10.25416,3617.8,3616.9,3.273637]
[1718200903829,3.0,3617.7,3616.9,3.273637]
[1718200907441,7.49,3617.8,3617.3,2.76446]
[1718200907643,19.77,3618.2,3617.4,0.276446]
[1718200907841,19.77,3618.2,3617.5,2.76433]
[1718200910340,19.77,3618.2,3617.2,5.07761]
[1718200910703,7.49,3618.2,3617.2,5.07761]
[1718200910921,7.49,3618.2,3617.3,0.65110551]
[1718200912009,7.49,3618.2,3617.4,0.05528229]
[1718200912206,7.49,3618.2,3617.3,0.65110551]
[1718200913246,2.4121,3618.1,3617.2,2.76451]
[1718200913546,5.176,3618.1,3616.9,5.255607]
[1718200913849,5.176,3618.1,3616.9,6.68905214]
[1718200914847,2.7639,3618.1,3617.1,2.3908]
[1718200915055,2.7639,3618.1,3617.2,0.97134611]
[1718200916543,7.49,3618.2,3617.2,0.97134611]
[1718200916750,7.49,3618.2,3617.4,2.76441]
[1718200919006,7.49,3618.2,3617.6,2.76424]
[1718200919550,2.2942,3618.6,3617.8,2.76406]
[1718200919551,9.7842,3618.6,3617.8,2.76406]
[1718200919721,7.49,3618.6,3617.9,0.58428998]
[1718200919922,7.49,3618.6,3618.0,2.76394]
[1718200925450,9.8713,3619.0,3618.0,2.76394]
[1718200925652,3.0,3618.9,3618.0,2.76394]
[1718200927261,7.49,3619.0,3618.3,2.2766]
[1718200927441,7.49,3619.0,3618.5,1.982]
[1718200927656,7.49,3619.0,3618.6,2.81875686]
[1718200927826,7.49,3619.5,3618.9,4.2586]
[1718200928023,7.49,3620.5,3619.4,2.76285]
[1718200928381,7.49,3620.5,3620.2,2.76221]
[1718200928685,7.49,3621.0,3620.2,2.76221]
[1718200931331,7.49,3621.0,3620.4,2.76211]
[1718200931529,7.49,3621.0,3620.5,5.524]
[1718200934274,12.28,3621.4,3620.5,5.524]
[1718200934275,19.77,3621.4,3620.5,5.524]
[1718200934460,3.0,3621.3,3620.5,5.524]
[1718200935255,2.76152,3621.2,3620.5,5.524]
[1718200935461,3.0,3621.1,3620.5,5.524]
[1718200936475,2.76188,3620.8,3620.5,5.524]
[1718200939660,3.0,3621.3,3620.5,5.524]
[1718200939888,4.27728,3621.3,3620.5,5.524]
[1718200941506,2.76151,3621.2,3620.5,5.524]
[1718200941690,3.0,3621.1,3620.5,5.524]
[1718200947080,2.76151,3621.2,3620.5,5.524]
[1718200947975,2.76193,3620.7,3620.5,5.524]
[1718200948174,0.276193,3620.6,3620.5,5.524]
[1718200949019,2.76193,3620.7,3620.5,5.524]
[1718200949523,5.76171,3621.0,3620.5,5.524]
[1718200952691,3.0,3621.0,3620.5,5.524]
[1718200952891,3.0,3621.2,3620.5,5.524]
[1718200959254,2.76159,3621.1,3620.5,5.524]
[1718200959896,1.325159,3621.1,3620.5,5.524]
[1718200960209,2.394,3620.9,3620.5,5.524]
[1718200961097,2.76191,3620.7,3620.5,5.524]
[1718200961327,3.0,3620.6,3620.5,5.524]
[1718200965649,2.76227,3620.3,3619.3,2.4628]
[1718200965940,2.76227,3620.3,3619.4,0.522586]
[1718200969716,2.76227,3620.3,3619.5,2.76281]
[1718200969920,7.49,3620.5,3619.7,2.76265]
[1718200970114,7.49,3620.5,3619.4,2.504586]
[1718200970115,3.0,3620.4,3619.9,2.76248]
[1718200970433,7.49,3620.5,3619.9,2.76248]
[1718200970434,7.49,3620.5,3620.2,2.3855]
[1718200970744,2.76156,3621.2,3620.3,0.514783]
[1718200970745,7.49,3621.0,3620.3,0.514783]
[1718200972351,3.0,3620.9,3620.3,0.514783]
[1718200974158,7.49,3621.0,3620.3,0.514783]
[1718200975181,10.49,3621.3,3620.3,0.514783]
[1718200975465,10.49,3621.3,3620.4,0.81969749]
[1718200975774,10.49,3621.3,3620.4,0.7644613]
[1718200976526,10.49,3621.3,3619.9,2.3009294]
[1718200976527,15.85264514,3621.3,3620.0,0.57832284]
[1718200976731,15.85264514,3621.3,3619.9,0.57832284]
[1718200976994,15.85264514,3621.3,3619.8,0.57832284]
[1718200977277,2.76179,3620.9,3619.8,0.57832284]
[1718200979456,2.76179,3620.9,3619.9,0.57832284]
[1718200979766,2.76179,3620.9,3620.0,0.42084171]
[1718200980384,2.76179,3620.9,3620.1,2.2503]
[1718200980883,2.76157,3621.2,3620.1,2.2503]
[1718200981038,3.0,3621.1,3620.1,2.2503]
[1718200981947,3.0,3621.1,3620.1,2.82862284]
[1718200982293,3.0,3621.1,3620.2,3.45019188]
[1718200982962,7.49,3621.3,3620.4,2.7621]
[1718200985172,7.49,3621.3,3620.6,2.76194]
[1718200986960,2.76132,3621.5,3620.6,2.76194]
[1718200987158,3.0,3621.4,3620.6,2.76194]
[1718200988388,3.0,3621.4,3620.6,3.09596628]
[1718200988589,7.49,3621.6,3620.6,3.09596628]
[1718200988913,7.49,3621.6,3620.7,2.457]
[1718200989420,7.49,3621.6,3621.0,2.76165]
[1718200989889,12.28,3622.0,3620.7,3.03532284]
[1718200989890,19.77,3622.0,3621.2,2.76145]
[1718200990058,7.49,3622.0,3621.2,2.76145]
[1718200990959,7.49,3622.0,3621.5,2.76124]
[1718200991159,7.49,3622.0,3621.5,5.19704]
[1718200994486,7.49,3622.4,3621.8,2.76104]
[1718200995291,7.49,3622.4,3622.1,2.76082]
[1718200995492,3.0,3622.6,3622.1,2.76082]
[1718200995704,3.0,3622.8,3622.1,2.76082]
[1718200996591,4.560071,3622.8,3621.8,2.76102]